bitfinex/quotes_BTCUSD_20250115
["timestamp","ask_amount","ask_price","bid_price","bid_amount"]
[1736960549137,0.0787538,99240.0,99239.0,1.93052]
[1736960549354,0.0787538,99240.0,99239.0,1.93352]
[1736960549561,0.0008538,99240.0,99239.0,1.93352]
[1736960549770,0.0018538,99240.0,99239.0,1.94252]
[1736960550177,0.0008538,99240.0,99239.0,1.93352]
[1736960550387,0.0018538,99240.0,99239.0,1.94052]
[1736960550599,0.0018538,99240.0,99239.0,2.04474692]
[1736960554787,0.0018538,99240.0,99239.0,2.07618343]
[1736960558152,0.0018538,99240.0,99239.0,2.30378343]
[1736960559608,0.0018538,99240.0,99239.0,2.42678343]
[1736960560198,0.0008538,99240.0,99239.0,2.41978343]
[1736960560409,0.0008538,99240.0,99239.0,2.41678343]
[1736960560623,0.0008538,99240.0,99239.0,2.96705437]
[1736960560834,0.0028538,99240.0,99239.0,2.96705437]
[1736960560986,0.0028538,99240.0,99239.0,2.56678343]
[1736960561186,0.0058538,99240.0,99239.0,2.56678343]
[1736960561387,0.0008538,99240.0,99239.0,2.56678343]
[1736960561591,0.0028538,99240.0,99239.0,2.56678343]
[1736960561916,0.0068538,99240.0,99239.0,2.56678343]
[1736960563148,0.0068538,99240.0,99239.0,2.57711431]
[1736960563340,0.0068538,99240.0,99239.0,2.57661431]
[1736960564360,8e-07,99240.0,99239.0,2.57661431]
[1736960564558,8e-07,99240.0,99239.0,2.60799681]
[1736960565245,0.0008537,99246.0,99245.0,0.629721]
[1736960565400,0.0008537,99246.0,99245.0,2.34409716]
[1736960565597,3e-08,99247.0,99246.0,0.373]
[1736960565800,3e-08,99250.0,99249.0,0.2]
[1736960566013,0.00049941,99250.0,99249.0,0.98591692]
[1736960566415,0.00049941,99250.0,99249.0,2.48591692]
[1736960566623,4.1e-07,99250.0,99249.0,2.48591692]
[1736960567015,4.1e-07,99250.0,99249.0,2.93615535]
[1736960567252,0.00100041,99250.0,99249.0,2.93715535]
[1736960567463,4.1e-07,99250.0,99249.0,2.98655535]
[1736960567663,4.1e-07,99250.0,99249.0,2.58756056]
[1736960568312,0.01009241,99279.0,99278.0,0.201454]
[1736960568520,0.00014973,99279.0,99278.0,1.74140916]
[1736960568954,0.00014973,99279.0,99278.0,3.24140916]
[1736960570557,0.00014973,99279.0,99278.0,3.24740916]
[1736960571007,0.00014973,99279.0,99278.0,3.25640916]
[1736960572655,0.00100463,99279.0,99278.0,3.25640916]
[1736960573098,0.00100463,99279.0,99278.0,3.35640916]
[1736960575817,0.00100463,99279.0,99278.0,3.37684985]
[1736960576674,0.00100463,99279.0,99278.0,3.64984985]
[1736960577543,0.00100463,99279.0,99278.0,3.72524985]
[1736960578543,6.3e-07,99279.0,99278.0,3.83154985]
[1736960579384,6.3e-07,99279.0,99278.0,3.71924985]
[1736960579850,6.3e-07,99279.0,99278.0,3.37684985]
[1736960580015,6.3e-07,99279.0,99278.0,3.47684985]
[1736960580229,6.3e-07,99279.0,99278.0,3.49384985]
[1736960580739,6.3e-07,99279.0,99278.0,3.49984985]
[1736960580954,6.3e-07,99279.0,99278.0,3.49084985]
[1736960581159,6.3e-07,99279.0,99278.0,3.06639585]
[1736960581352,6.3e-07,99279.0,99278.0,3.17539585]
[1736960581489,6.3e-07,99279.0,99278.0,3.27539585]
[1736960582099,6.3e-07,99279.0,99278.0,3.16039585]
[1736960582334,6.3e-07,99279.0,99278.0,3.07439585]
[1736960582482,6.3e-07,99279.0,99278.0,3.17439585]
[1736960583416,6.3e-07,99279.0,99278.0,3.27439585]
[1736960583970,6.3e-07,99279.0,99278.0,3.05395516]
[1736960584401,6.3e-07,99279.0,99278.0,1.9444]
[1736960584619,6.3e-07,99279.0,99278.0,1.94619466]
[1736960585117,0.08803732,99279.0,99278.0,1.93219466]
[1736960585534,0.07810063,99279.0,99278.0,1.94219466]
[1736960585970,0.07810063,99279.0,99278.0,1.93219466]
[1736960586203,0.07810063,99279.0,99278.0,1.93819466]
[1736960586414,0.07810063,99279.0,99278.0,1.93919466]
[1736960587038,0.0960108,99279.0,99278.0,1.93919466]
[1736960587430,0.0960108,99279.0,99278.0,1.93319466]
[1736960587667,0.0960108,99279.0,99278.0,1.93519466]
[1736960588083,0.0960108,99279.0,99278.0,0.43519466]
[1736960588462,0.0960108,99279.0,99278.0,0.43219466]
[1736960588602,0.0960108,99279.0,99278.0,1.93319466]
[1736960588802,0.0960108,99279.0,99278.0,1.93719466]
[1736960590271,0.08820493,99279.0,99278.0,1.93719466]
[1736960590446,6.3e-07,99279.0,99278.0,1.93719466]
[1736960591719,6.3e-07,99279.0,99278.0,1.93319466]
[1736960592022,6.3e-07,99279.0,99278.0,1.93919466]
[1736960592236,6.3e-07,99279.0,99278.0,2.03742158]
[1736960592441,6.3e-07,99279.0,99278.0,2.24487558]
[1736960592693,0.00999002,99294.0,99280.0,0.20145]
[1736960592901,0.00999002,99294.0,99281.0,0.10422692]
[1736960593104,0.11713842,99300.0,99281.0,0.53461692]
[1736960593310,0.11713842,99300.0,99282.0,0.201446]
[1736960593516,0.11713842,99300.0,99297.0,1.5]
[1736960593942,0.11713842,99300.0,99297.0,1.93034]
[1736960594684,4e-05,99300.0,99297.0,1.93034]
[1736960595092,4e-05,99300.0,99297.0,1.93434]
[1736960595294,0.01085957,99298.0,99297.0,1.93434]
[1736960595467,0.0008544,99298.0,99297.0,1.93434]
[1736960595891,0.00903043,99298.0,99297.0,0.43534]
[1736960596517,0.00903043,99298.0,99297.0,0.43434]
[1736960596917,0.00903043,99298.0,99297.0,0.43034]
[1736960598077,0.34135735,99298.0,99297.0,0.43034]
[1736960598287,0.39045735,99298.0,99297.0,0.43034]
[1736960598913,0.39045735,99298.0,99297.0,0.3970952]
[1736960599132,0.39045735,99298.0,99280.0,0.03142352]
[1736960599133,0.201448,99281.0,99280.0,0.03142352]
[1736960599337,1.02443424,99281.0,99249.0,0.00179529]
[1736960599553,0.01642842,99259.0,99249.0,0.00179529]
[1736960599763,0.201508,99252.0,99249.0,0.00194502]
[1736960600037,0.201508,99252.0,99249.0,0.30419502]
[1736960600436,0.201509,99251.0,99249.0,0.30419502]
[1736960600849,0.201509,99251.0,99250.0,1.5]
[1736960601056,0.201509,99251.0,99250.0,1.80227]
[1736960602092,0.201509,99251.0,99250.0,1.80327]
[1736960603124,0.201509,99251.0,99250.0,1.80427]
[1736960604149,0.201509,99251.0,99250.0,0.30427]
[1736960605563,0.21184364,99251.0,99250.0,0.30427]
[1736960606619,0.31607056,99251.0,99250.0,0.30427]
[1736960607012,0.46607056,99251.0,99250.0,0.30427]
[1736960607234,0.46607056,99251.0,99250.0,0.30327]
[1736960607459,0.54567056,99251.0,99250.0,0.30327]
[1736960607703,0.67603056,99251.0,99250.0,0.25721911]
[1736960607922,1.48707068,99251.0,99250.0,0.21263724]
[1736960608164,1.61571556,99251.0,99250.0,0.21263724]
[1736960608353,1.32966456,99251.0,99250.0,0.21263724]
[1736960608556,1.32866456,99251.0,99250.0,0.2144319]
[1736960608992,0.54767056,99251.0,99250.0,0.2144319]
[1736960609414,0.55403056,99251.0,99250.0,0.2144319]
[1736960610227,0.46707056,99251.0,99250.0,0.2144319]
[1736960610413,0.47343056,99251.0,99250.0,1.7144319]
[1736960610791,0.46707056,99251.0,99250.0,1.7144319]
[1736960611001,0.47243056,99251.0,99250.0,1.7144319]
[1736960611208,0.46607056,99251.0,99250.0,1.7144319]
[1736960611409,0.47343056,99251.0,99250.0,1.7144319]
[1736960611842,0.47243056,99251.0,99250.0,0.2144319]
[1736960612588,0.46607056,99251.0,99250.0,0.2144319]
[1736960612812,0.69594056,99251.0,99250.0,0.1354219]
[1736960613024,0.64012256,99251.0,99250.0,0.1354219]
[1736960613177,0.61994256,99251.0,99250.0,0.1354219]
[1736960613577,0.61994256,99251.0,99250.0,0.1364219]
[1736960613992,0.61994256,99251.0,99250.0,0.1354219]
[1736960614191,0.62094256,99251.0,99250.0,0.1354219]
[1736960614800,0.61994256,99251.0,99250.0,0.1354219]
[1736960615365,0.64294256,99251.0,99250.0,0.1354219]
[1736960615527,0.64394256,99251.0,99250.0,0.1354219]
[1736960615910,0.64394256,99251.0,99250.0,0.0990419]
[1736960616122,0.64294256,99251.0,99250.0,0.0990419]
[1736960617416,0.64394256,99251.0,99250.0,0.0990419]
[1736960618438,0.82034256,99251.0,99250.0,0.02893016]
[1736960618592,0.92034256,99251.0,99250.0,0.02893016]
[1736960619024,0.351549,99231.0,99226.0,0.02068749]
[1736960619270,0.45577592,99231.0,99230.0,0.00229236]
[1736960619481,0.53217592,99231.0,99230.0,0.30462236]
[1736960619622,0.55517592,99231.0,99230.0,0.30462236]
[1736960619822,0.75517592,99231.0,99230.0,0.25467797]
[1736960620001,1.75307792,99231.0,99230.0,0.15390297]
[1736960620236,1.87277692,99231.0,99230.0,0.15390297]
[1736960620501,1.42873292,99231.0,99230.0,0.15390297]
[1736960620709,1.40551992,99231.0,99230.0,0.15390297]
[1736960621119,1.40551992,99231.0,99230.0,0.15490297]
[1736960621329,1.40551992,99231.0,99230.0,0.15390297]
[1736960621751,1.40551992,99231.0,99230.0,0.0130079]
[1736960621957,1.40751992,99231.0,99230.0,0.01121513]
[1736960622223,0.1,99225.0,99224.0,5.5e-07]
[1736960622421,0.023,99211.0,99180.0,0.0498]
[1736960622669,0.11709842,99190.0,99180.0,0.35223]
[1736960622803,0.11709842,99190.0,99180.0,0.35237993]
[1736960622804,0.15636,99189.0,99180.0,0.35237993]
[1736960623015,0.201647,99183.0,99180.0,0.35237993]
[1736960623220,0.201647,99183.0,99180.0,0.30257993]
[1736960623424,0.403295,99183.0,99180.0,0.30257993]
[1736960623708,0.201647,99183.0,99180.0,0.30857993]
[1736960624045,0.201647,99183.0,99180.0,0.30257993]
[1736960624279,0.201651,99181.0,99180.0,0.30257993]
[1736960624467,0.202647,99183.0,99180.0,0.31157993]
[1736960624666,0.15,99182.0,99180.0,0.31157993]
[1736960624874,0.201651,99181.0,99180.0,0.31157993]
[1736960625053,0.201651,99181.0,99180.0,0.31457993]
[1736960625590,0.201651,99181.0,99180.0,0.31157993]
[1736960625829,0.201651,99181.0,99180.0,0.30257993]
[1736960626034,0.351651,99181.0,99180.0,0.30557993]
[1736960626243,0.15,99181.0,99180.0,1.81457993]
[1736960627124,0.15,99181.0,99180.0,1.81157993]
[1736960627346,0.25548727,99181.0,99180.0,1.81157993]
[1736960627543,0.25422692,99181.0,99180.0,1.80657993]
[1736960627904,0.25422692,99181.0,99180.0,1.80257993]
[1736960628115,0.25422692,99181.0,99180.0,1.80357993]
[1736960628522,0.15,99181.0,99180.0,1.80357993]
[1736960628699,0.15636,99181.0,99180.0,1.80357993]
[1736960629330,0.15636,99181.0,99180.0,1.80457993]
[1736960629535,0.15636,99181.0,99180.0,1.80357993]
[1736960630065,0.15636,99181.0,99180.0,1.80457993]
[1736960630520,0.15,99181.0,99180.0,1.80457993]
[1736960630700,0.00989645,99183.0,99180.0,1.88267993]
[1736960630947,0.15,99189.0,99180.0,0.38267993]
[1736960631364,0.201633,99190.0,99180.0,0.38267993]
[1736960631568,0.15,99189.0,99188.0,1.5]
[1736960631986,0.15,99189.0,99188.0,1.80246]
[1736960632198,0.21188442,99190.0,99188.0,1.80246]
[1736960633689,0.21188442,99190.0,99188.0,1.80446]
[1736960634115,0.282356,99228.0,99189.0,0.10422692]
[1736960634323,0.00636,99215.0,99197.0,0.201618]
[1736960634522,0.201584,99214.0,99198.0,0.0781]
[1736960634754,0.00636,99215.0,99202.0,1.5]
[1736960634957,0.00636,99215.0,99202.0,1.80241]
[1736960635221,0.11709842,99212.0,99202.0,1.80241]
[1736960635736,0.2016,99206.0,99202.0,1.80241]
[1736960635988,0.201594,99209.0,99202.0,1.80241]
[1736960636232,0.201602,99206.0,99202.0,1.80241]
[1736960636720,0.201603,99205.0,99202.0,1.80241]
[1736960636956,0.201603,99205.0,99202.0,1.80641]
[1736960637164,0.12735695,99212.0,99202.0,1.80641]
[1736960637165,0.16025853,99212.0,99202.0,1.80641]
[1736960637373,0.01025853,99212.0,99202.0,1.80641]
[1736960637603,0.01025853,99212.0,99203.0,0.10422692]
[1736960637872,0.00636,99222.0,99203.0,0.40663692]
[1736960638120,0.0008551,99224.0,99203.0,0.40663692]
[1736960638121,0.01094274,99224.0,99211.0,0.201588]
[1736960638393,0.01094274,99224.0,99212.0,0.18232692]
[1736960638637,0.0008551,99224.0,99217.0,1.5]
[1736960638865,0.0008551,99224.0,99217.0,1.80237]
[1736960639095,0.0008551,99224.0,99217.0,0.30237]
[1736960639596,0.0008551,99224.0,99223.0,1.5]
[1736960639824,0.0008551,99224.0,99223.0,1.90657692]
[1736960640042,0.0008551,99224.0,99223.0,2.03189655]
[1736960640246,0.00073356,99224.0,99223.0,2.03189655]
[1736960641187,0.00073356,99224.0,99223.0,2.04289655]
[1736960641540,0.00073356,99224.0,99223.0,2.03989655]
[1736960641997,0.00073356,99224.0,99223.0,2.04389655]
[1736960642233,0.00073356,99224.0,99223.0,1.93166963]
[1736960642429,0.00073356,99224.0,99223.0,0.30635]
[1736960642664,0.00073356,99224.0,99223.0,0.31535]
[1736960642879,0.00073356,99224.0,99223.0,0.30635]
[1736960643086,0.00073356,99224.0,99223.0,0.31435]
[1736960643340,0.00073356,99224.0,99223.0,0.30235]
[1736960643757,0.00073356,99224.0,99223.0,0.30535]
[1736960644005,0.01092999,99224.0,99223.0,0.30735]
[1736960644271,0.00073356,99224.0,99223.0,0.30535]
[1736960644781,0.00073356,99224.0,99223.0,1.80235]
[1736960645009,0.01067219,99224.0,99223.0,0.30335]
[1736960645238,0.26615896,99224.0,99223.0,0.30335]
[1736960645456,0.26489911,99224.0,99223.0,0.30714571]
[1736960645875,0.16067219,99224.0,99223.0,0.30714571]
[1736960646317,0.16067219,99224.0,99223.0,0.30414571]
[1736960646530,0.16367219,99224.0,99223.0,0.30414571]
[1736960646739,0.16167219,99224.0,99223.0,0.30414571]
[1736960647154,0.16067219,99224.0,99223.0,0.30514571]
[1736960648970,0.01067219,99224.0,99223.0,0.30514571]
[1736960649224,0.00073356,99224.0,99223.0,0.43104571]
[1736960649462,0.00073356,99224.0,99223.0,1.43637395]
[1736960649674,0.00073356,99224.0,99223.0,3.04060087]
[1736960649904,0.00073356,99224.0,99223.0,3.03960087]
[1736960650327,0.00073356,99224.0,99223.0,3.04360087]
[1736960650538,0.0008549,99251.0,99244.0,0.201523]
[1736960650756,0.0008549,99251.0,99246.0,0.0798]
[1736960650970,0.0008549,99251.0,99247.0,0.10422692]
[1736960651187,0.0008549,99251.0,99250.0,1.5]
[1736960651404,0.0008549,99251.0,99250.0,1.80227]
[1736960652280,0.00135398,99251.0,99250.0,1.80227]
[1736960653404,0.00135398,99251.0,99250.0,1.81027]
[1736960653619,0.00135398,99251.0,99250.0,1.81327]
[1736960656640,0.00135398,99251.0,99250.0,0.31327]
[1736960657204,0.00135398,99251.0,99250.0,1.81327]
[1736960663098,0.00135398,99251.0,99250.0,1.80227]
[1736960663312,0.00135398,99251.0,99250.0,1.80527]
[1736960663735,0.00135398,99251.0,99250.0,1.80427]
[1736960663970,0.00135398,99251.0,99250.0,1.88407]
[1736960664158,0.00135398,99251.0,99250.0,1.93017]
[1736960664371,0.00135398,99251.0,99250.0,2.03439692]
[1736960664813,0.00135398,99251.0,99250.0,2.25739692]
[1736960665015,0.201424,99293.0,99254.0,0.604509]
[1736960665235,0.00014967,99293.0,99259.0,0.1]
[1736960665461,0.00014967,99293.0,99275.0,0.1259]
[1736960665663,0.00014967,99293.0,99278.0,0.201454]
[1736960665868,0.0079342,99292.0,99278.0,0.30218]
[1736960666513,0.0079342,99292.0,99288.0,1.5]
[1736960666773,0.0079342,99292.0,99288.0,1.80215]
[1736960668006,0.01044177,99293.0,99288.0,1.80215]
[1736960668629,0.0008551,99292.0,99288.0,1.80215]
[1736960669449,0.0008551,99292.0,99288.0,1.80315]
[1736960669651,0.201428,99291.0,99288.0,1.80315]
[1736960669859,0.402856,99291.0,99288.0,0.30315]
[1736960670679,0.402856,99291.0,99288.0,0.30215]
[1736960670879,0.201432,99289.0,99288.0,0.30215]
[1736960671083,0.201432,99289.0,99288.0,0.30315]
[1736960672100,0.201432,99289.0,99288.0,0.30211811]
[1736960672636,0.201432,99289.0,99288.0,0.30411811]
[1736960674051,0.20935355,99289.0,99288.0,0.30411811]
[1736960675101,0.20935355,99289.0,99288.0,1.80411811]
[1736960675323,0.20935355,99289.0,99288.0,0.30411811]
[1736960676089,0.00792155,99289.0,99288.0,0.30411811]
[1736960677427,0.00792155,99289.0,99288.0,1.80411811]
[1736960678790,0.20935355,99289.0,99288.0,1.80411811]
[1736960678994,0.20935355,99289.0,99288.0,0.30411811]
[1736960679400,0.35935355,99289.0,99288.0,1.80411811]
[1736960680060,0.00792155,99289.0,99288.0,1.80411811]
[1736960680282,0.00792155,99289.0,99288.0,1.80591277]
[1736960681203,0.02081096,99289.0,99288.0,1.80591277]
[1736960684162,0.00792155,99289.0,99288.0,1.80591277]
[1736960685344,0.0008546,99291.0,99288.0,1.80591277]
[1736960685582,0.0008546,99291.0,99288.0,0.30591277]
[1736960685976,0.0008546,99291.0,99290.0,1.5]
[1736960686177,0.0008546,99291.0,99290.0,1.90740692]
[1736960688209,0.0008546,99291.0,99290.0,1.90840692]
[1736960688421,0.0008546,99291.0,99290.0,1.90740692]
[1736960688847,0.0008546,99291.0,99290.0,1.91540692]
[1736960689047,0.0008546,99291.0,99290.0,1.91840692]
[1736960691474,0.0008546,99291.0,99290.0,1.81418]
[1736960692302,0.0008546,99291.0,99290.0,1.81118]
[1736960692719,0.0008546,99291.0,99290.0,1.80618]
[1736960692914,0.0008546,99291.0,99290.0,1.81318]
[1736960694219,0.00857166,99291.0,99290.0,1.81318]
[1736960696713,0.0008546,99291.0,99290.0,1.81318]
[1736960697019,0.0008546,99291.0,99290.0,1.81018]
[1736960697439,0.0008546,99291.0,99290.0,1.81118]
[1736960697613,0.0008546,99291.0,99290.0,1.80418]
[1736960697816,0.0008546,99291.0,99290.0,1.80618]
[1736960698020,0.0008546,99291.0,99290.0,1.80318]
[1736960698388,0.0008546,99291.0,99290.0,1.81118]
[1736960698625,0.0008546,99291.0,99290.0,1.80518]
[1736960698831,0.0008546,99291.0,99290.0,1.80918]
[1736960699655,0.00854861,99291.0,99290.0,1.80918]
[1736960700273,0.00854861,99291.0,99290.0,1.81118]
[1736960700721,0.00854861,99291.0,99290.0,1.80318]
[1736960700940,0.00854861,99291.0,99290.0,1.80818]
[1736960701399,0.00854861,99291.0,99290.0,1.80418]
[1736960701608,0.00854861,99291.0,99290.0,1.80618]
[1736960702254,0.00854861,99291.0,99290.0,1.80418]
[1736960702476,0.0238546,99291.0,99290.0,0.30418]
[1736960702689,0.0238546,99291.0,99290.0,0.12532545]
[1736960702690,0.36234049,99291.0,99290.0,0.12532545]
[1736960702907,0.46108152,99291.0,99290.0,0.10207965]
[1736960703110,0.71725752,99291.0,99290.0,0.05477684]
[1736960703319,0.434478,99266.0,99265.0,1.5]
[1736960703541,0.39502492,99266.0,99265.0,0.12922]
[1736960704917,0.31202492,99266.0,99265.0,0.12922]
[1736960705692,0.46502492,99266.0,99265.0,0.12922]
[1736960706727,0.37181906,99266.0,99265.0,0.12922]
[1736960706934,0.01402106,99266.0,99265.0,0.12922]
[1736960707370,0.0008546,99291.0,99266.0,0.0774]
[1736960707572,0.01020094,99281.0,99272.0,0.201466]
[1736960707744,0.0008546,99291.0,99273.0,0.0774]
[1736960707949,0.20143,99290.0,99273.0,0.5526]
[1736960708149,0.20143,99290.0,99289.0,1.5]
[1736960708381,0.20143,99290.0,99289.0,1.97515]
[1736960708966,0.0008546,99291.0,99289.0,1.97515]
[1736960710068,0.2022826,99291.0,99289.0,1.97515]
[1736960710529,0.0008546,99291.0,99289.0,1.97515]
[1736960710729,0.0008546,99291.0,99289.0,1.97815]
[1736960710931,0.0008546,99291.0,99289.0,1.97615]
[1736960711041,0.0008546,99291.0,99289.0,1.97815]
[1736960711709,0.0008546,99291.0,99289.0,0.47815]
[1736960712320,0.0008546,99291.0,99290.0,1.5]
[1736960712530,0.0008546,99291.0,99290.0,1.97515]
[1736960713198,0.0008546,99291.0,99290.0,2.09945]
[1736960713869,0.0008546,99291.0,99290.0,2.40710692]
[1736960714280,0.0008546,99291.0,99290.0,2.41210692]
[1736960714671,0.0008546,99291.0,99290.0,2.40810692]
[1736960714873,0.0008546,99291.0,99290.0,2.41610692]
[1736960715953,0.0008546,99291.0,99290.0,2.41790242]
[1736960726680,0.0008546,99291.0,99290.0,2.1122455]
[1736960728215,0.0008546,99291.0,99290.0,1.9879455]
[1736960729491,0.2022826,99291.0,99290.0,1.9879455]
[1736960729706,0.44900471,99291.0,99290.0,1.9879455]
[1736960729925,0.62293163,99291.0,99290.0,0.4879455]
[1736960730740,0.62293163,99291.0,99290.0,0.4799455]
[1736960731161,0.59993163,99291.0,99290.0,0.4799455]
[1736960731367,0.55323163,99291.0,99290.0,0.4769455]
[1736960731590,0.36850471,99291.0,99290.0,0.4769455]
[1736960731793,0.36850471,99291.0,99290.0,0.48020734]
[1736960732692,0.21850471,99291.0,99290.0,0.48020734]
[1736960733050,0.01275671,99291.0,99290.0,1.98020734]
[1736960733272,0.01075671,99291.0,99290.0,2.05900734]
[1736960733679,0.0008546,99291.0,99290.0,2.05900734]
[1736960733885,0.0008546,99291.0,99290.0,2.16323426]
[1736960734705,0.0008546,99291.0,99290.0,2.16523426]
[1736960735178,0.0008546,99291.0,99290.0,2.16623426]
[1736960735651,0.0008546,99291.0,99290.0,2.16523426]
[1736960736086,0.0008546,99291.0,99290.0,2.16623426]
[1736960736499,0.0008546,99291.0,99290.0,2.06600734]
[1736960736706,0.0008546,99291.0,99290.0,1.98320734]
[1736960736911,0.0008546,99291.0,99290.0,1.99120734]
[1736960739327,4e-05,99300.0,99290.0,3.1822625]
[1736960739539,1.0,99317.0,99315.0,0.128]
[1736960739756,1.0,99317.0,99316.0,0.10422692]
[1736960739964,1.0,99317.0,99316.0,2.07929692]
[1736960740174,1.0,99317.0,99316.0,1.97815884]
[1736960741426,1.0079612,99317.0,99316.0,1.97815884]
[1736960741741,1.0079612,99317.0,99316.0,1.97507]
[1736960741945,1.0079612,99317.0,99316.0,1.97607]
[1736960742378,1.0079612,99317.0,99316.0,1.97914936]
[1736960742639,1.0,99317.0,99316.0,1.97914936]
[1736960744004,1.0,99317.0,99316.0,1.97814936]
[1736960744210,1.0,99317.0,99316.0,1.97914936]
[1736960744608,1.0,99317.0,99316.0,1.98114936]
[1736960744804,1.0,99317.0,99316.0,1.97814936]
[1736960745004,1.0,99317.0,99316.0,1.98014936]
[1736960745213,1.0,99317.0,99316.0,1.98614936]
[1736960745414,0.999,99317.0,99316.0,1.98614936]
[1736960746461,0.999,99317.0,99316.0,2.16597628]
[1736960746674,0.999,99317.0,99316.0,2.15997628]
[1736960746874,0.999,99317.0,99316.0,2.16797628]
[1736960747079,0.999,99317.0,99316.0,2.16597628]
[1736960747295,0.999,99317.0,99316.0,2.16097628]
[1736960747532,0.999,99317.0,99316.0,2.16997628]
[1736960747721,0.999,99317.0,99316.0,2.16697628]
[1736960748156,0.999,99317.0,99316.0,2.17097628]
[1736960748360,0.999,99317.0,99316.0,2.16197628]
[1736960748570,0.999,99317.0,99316.0,2.16697628]
[1736960749421,0.999,99317.0,99316.0,2.17097628]
[1736960750333,0.999,99317.0,99316.0,2.37235328]
[1736960750719,0.999,99317.0,99316.0,2.17097628]
[1736960752019,0.999,99317.0,99316.0,2.17277136]
[1736960752412,0.9998548,99317.0,99316.0,2.17277136]
[1736960754190,0.9998548,99317.0,99316.0,2.06854444]
[1736960755324,0.9998548,99317.0,99316.0,2.17277136]
[1736960758643,0.9998548,99317.0,99316.0,1.99294444]
[1736960762977,0.9998548,99317.0,99316.0,2.09717136]
[1736960764865,0.9948548,99317.0,99316.0,2.09717136]
[1736960768387,0.9948548,99317.0,99316.0,3.2303996]
[1736960769424,0.99473337,99317.0,99316.0,3.2303996]
[1736960770323,0.99473337,99317.0,99316.0,2.22507136]
[1736960781991,0.99473337,99317.0,99316.0,2.09717136]
[1736960786973,0.000855,99324.0,99316.0,2.17587136]
[1736960787204,0.0010047,99324.0,99317.0,0.10422692]
[1736960787413,0.0010047,99324.0,99323.0,0.201363]
[1736960787627,0.0010047,99324.0,99323.0,0.30558992]
[1736960787894,0.0010047,99324.0,99323.0,2.07926692]
[1736960788074,0.0010047,99324.0,99323.0,2.08259084]
[1736960788934,0.0010047,99324.0,99323.0,2.08559084]
[1736960789403,0.0010047,99324.0,99323.0,1.98136392]
[1736960790125,0.0010047,99324.0,99323.0,1.98936392]
[1736960790626,0.2023657,99324.0,99323.0,1.98936392]
[1736960791048,0.0010047,99324.0,99323.0,1.98936392]
[1736960791893,0.0010047,99324.0,99323.0,1.98136392]
[1736960792305,0.0010047,99324.0,99323.0,1.98736392]
[1736960792501,0.0010047,99324.0,99323.0,1.97836392]
[1736960792733,0.0010047,99324.0,99323.0,1.98036392]
[1736960792957,0.0010047,99324.0,99323.0,1.98836392]
[1736960793343,0.0010047,99324.0,99323.0,1.98636392]
[1736960793518,0.0010047,99324.0,99323.0,1.98936392]
[1736960795124,0.0010047,99324.0,99323.0,2.17479084]
[1736960795344,0.0010047,99324.0,99323.0,2.27479084]
[1736960798368,0.0010047,99324.0,99323.0,2.28506969]
[1736960798575,0.0010047,99324.0,99323.0,2.17479084]
[1736960799264,0.0010047,99324.0,99323.0,2.57457402]
[1736960799485,0.0010047,99324.0,99323.0,2.67457402]
[1736960800874,0.0010047,99324.0,99323.0,2.27479084]
[1736960803413,0.0010047,99324.0,99323.0,2.29494219]
[1736960804852,0.0010047,99324.0,99323.0,2.39494219]
[1736960805078,0.000855,99340.0,99339.0,0.42763]
[1736960805305,0.00099063,99340.0,99339.0,2.01218516]
[1736960805504,0.00099063,99340.0,99339.0,2.01611508]
[1736960805939,0.00099063,99340.0,99339.0,3.51611508]
[1736960806139,0.00099063,99340.0,99339.0,3.61611508]
[1736960806363,0.000895,99350.0,99346.0,0.2263]
[1736960806601,0.0098647,99389.0,99379.0,0.201249]
[1736960806771,0.0098647,99389.0,99383.0,0.201241]
[1736960806987,0.01543651,99384.0,99383.0,0.78032792]
[1736960807142,0.01543651,99384.0,99383.0,2.28423296]
[1736960807342,0.01543651,99384.0,99383.0,2.08299196]
[1736960807748,0.01543651,99384.0,99383.0,1.97876504]
[1736960808332,0.01543651,99384.0,99383.0,2.08299196]
[1736960808969,0.01543651,99384.0,99383.0,2.09599196]
[1736960809727,0.01543651,99384.0,99383.0,2.52909196]
[1736960809903,0.0008552,99391.0,99387.0,0.1]
[1736960810104,0.00100481,99391.0,99390.0,0.201227]
[1736960810336,0.00100481,99391.0,99390.0,0.78029392]
[1736960810487,0.00100481,99391.0,99390.0,1.97869225]
[1736960811339,0.00100481,99391.0,99390.0,0.47869225]
[1736960811540,0.00100481,99391.0,99390.0,0.48061946]
[1736960811751,0.00100481,99391.0,99390.0,1.98061946]
[1736960811986,0.00100481,99391.0,99390.0,2.08484638]
[1736960812531,0.00100481,99391.0,99390.0,2.09284638]
[1736960812934,0.00100481,99391.0,99390.0,2.08784638]
[1736960813147,0.00100481,99391.0,99390.0,2.09684638]
[1736960814124,0.00100481,99391.0,99390.0,2.09384638]
[1736960814325,0.00100481,99391.0,99390.0,0.59784638]
[1736960815007,0.00100481,99391.0,99390.0,2.09784638]
[1736960818284,0.00100481,99391.0,99390.0,1.99361946]
[1736960819271,0.00100481,99391.0,99390.0,1.99747244]
[1736960819494,0.00100481,99391.0,99390.0,1.98847244]
[1736960819913,0.00100481,99391.0,99390.0,1.99547244]
[1736960820124,0.00100481,99391.0,99390.0,1.99147244]
[1736960820536,0.00100481,99391.0,99390.0,1.99347244]
[1736960821421,0.00100481,99391.0,99390.0,1.99147244]
[1736960821846,0.00100481,99391.0,99390.0,2.09869936]
[1736960822073,0.00100481,99391.0,99390.0,1.99447244]
[1736960822285,0.00073819,99391.0,99390.0,1.99447244]
[1736960822503,0.00073819,99391.0,99390.0,2.09869936]
[1736960822716,0.00073819,99391.0,99390.0,2.22849936]
[1736960824563,0.00073819,99391.0,99390.0,2.22549936]
[1736960824721,0.00073819,99391.0,99390.0,2.21849936]
[1736960824925,0.00273819,99391.0,99390.0,2.22049936]
[1736960826374,0.00273819,99391.0,99390.0,2.21949936]
[1736960826786,0.00273819,99391.0,99390.0,2.22049936]
[1736960827690,0.00273819,99391.0,99390.0,2.24046758]
[1736960827830,0.00273819,99391.0,99390.0,2.23946758]
[1736960828408,0.00073819,99391.0,99390.0,2.24446758]
[1736960828599,0.00073819,99391.0,99390.0,2.25346758]
[1736960828807,0.00073819,99391.0,99390.0,2.24446758]
[1736960829104,0.00173819,99391.0,99390.0,2.24546758]
[1736960829522,0.00073819,99391.0,99390.0,2.24446758]
[1736960829745,0.00173819,99391.0,99390.0,2.23946758]
[1736960829949,0.00973819,99391.0,99390.0,2.24046758]
[1736960830613,0.00973819,99391.0,99390.0,2.10966758]
[1736960830614,0.00173819,99391.0,99390.0,2.10966758]
[1736960830843,0.00973819,99391.0,99390.0,2.11066758]
[1736960831051,0.00873819,99391.0,99390.0,2.08969936]